Cogmind - Beta 14 @@@ ROGUE MODE // 2024.10.07 @ 20:02:26 Player: Deo Result: Destroyed by 01-MTF with 01-MTF's Shockpuncher Performance ------------- Evolutions (1) 500 Regions Visited (3) 600 Robots Destroyed (48) 240 Value Destroyed (1430) 1430 Prototype IDs (0) 0 Alien Tech Used (0) 0 Bonus (-258) -258 TOTAL SCORE: 2512 Bonus ------- Follower Combat Kills 25 Friendly Fire -283 Cogmind --------- Core Integrity 0/400 Matter 286/300 Energy 81/100 System Corruption 1% Temperature Cool (39) Movement Walking (190) Ox1 Location -9/Storage Parts ------- > --- POWER (1) -------- (None) > --- PROPULSION (2) --- Improved Aluminum Leg Improved Aluminum Leg > --- UTILITY (3) ------ Large Storage Unit Visual Processing Unit Signal Interpreter > --- WEAPON (3) ------- EM Pulse Gun EM Pulse Gun Light Cannon > --- INVENTORY (15) --- Ion Engine Heavy Ion Engine Improved Flight Unit Medium Battery (150) Signal Interpreter Hardened Light Armor Plating Hardlight Generator Drone Bay (2/2) Beam Rifle Heavy Assault Rifle Light Cannon Datajack Peak State ------------ > --- POWER ------------ Ion Engine > --- PROPULSION ------- Airjet Airjet > --- UTILITY ---------- Large Storage Unit Visual Processing Unit Terrain Scanner > --- WEAPON ----------- Assault Cannon Assault Cannon Assault Cannon > --- INVENTORY -------- Light Ion Engine Aluminum Leg Wheel Wheel Assault Cannon [Rating: 20] Favorites ----------- Power Light Ion Engine Engine Light Ion Engine Propulsion Aluminum Leg Leg Aluminum Leg Wheel Wheel Hover Unit Airjet Utility Large Storage Unit Device Terrain Scanner Storage Large Storage Unit Processor Visual Processing Unit Weapon Assault Cannon Energy Gun EM Pulse Gun Ballistic Gun Light Assault Rifle Ballistic Cannon Assault Cannon Launcher Missile Launcher Build | -11 -10 -9 -9 ------- Run | Yrd Mat Mat Sto Slots Evolved 2 | . . 2 . Power . | . . . . Propulsion . | . . . . Utility 1 | . . 1 . Weapon 1 | . . 1 . Parts Attached 45 | 6 10 26 3 Power 5 | 1 . 4 . Engine 5 | 1 . 4 . Core . | . . . . Reactor . | . . . . Propulsion 14 | 2 2 8 2 Treads . | . . . . Leg 8 | 2 . 4 2 Wheel 4 | . 2 2 . Hover 2 | . . 2 . Flight . | . . . . Utility 9 | 1 3 5 . Device 4 | . 1 3 . Storage 2 | 1 1 . . Processor 3 | . 1 2 . Hackware . | . . . . Protection . | . . . . Artifact . | . . . . Weapon 17 | 2 5 9 1 Energy Gun 5 | . 3 1 1 Energy Cannon . | . . . . Ballistic Gun 5 | 2 2 1 . Ballistic Cannon 6 | . . 6 . Launcher 1 | . . 1 . Special Weapon . | . . . . Impact Weapon . | . . . . Slashing Weapon . | . . . . Piercing Weapon . | . . . . Special Melee Weapon . | . . . . Unidentified Prototypes . | . . . . Parts Lost 14 | . 3 11 . Power 2 | . . 2 . Propulsion 5 | . 2 3 . Utility 2 | . . 2 . Weapon 5 | . 1 4 . Highest Loss Streak 6 | . 2 6 . To Critical Strikes . | . . . . Average Slot Usage (%) 94 | . 93 95 95 Engine 10 | . 14 10 7 Leg 18 | . 18 16 22 Wheel 3 | . 5 3 . Device 6 | . 11 6 . Storage 11 | . 14 11 11 Processor 12 | . . 14 22 Energy Gun 7 | . 8 . 18 Ballistic Gun 5 | . 18 1 . Ballistic Cannon 17 | . . 28 11 Launcher 1 | . . . 3 Peak Build Rating 20 | 6 9 20 16 Average Rating 12 | 4 7 15 13 On Entrance 7 | . 6 8 14 Naked Turns . | . . . . Heaviest Build 41 | 13 30 41 38 Greatest Support 26 | 20 20 20 26 Greatest Overweight (x) 9 | 2 9 8 1 Average Overweight (x) 1 | . 1 1 1 Largest Inventory Capacity 15 | 8 15 15 15 Average Capacity 14 | 7 14 15 15 Most Carried 14 | 3 7 11 14 Average Carried 7 | 1 5 7 9 Final Capacity 15 | 8 15 15 15 Final Carried 12 | 3 5 9 12 Class Distribution -------------------- 30% | Mutant 20% | Tank 20% | Skirmisher 13% | Scavenger-Skirmisher 11% | Commander-Skirmisher Dominant Class ---------------- Mutant | -10/Materials Tank | -9/Materials Commander-Skirmisher | -9/Storage Resources | -11 -10 -9 -9 ----------- Run | Yrd Mat Mat Sto Matter Collected 1521 | 214 144 986 177 Remotely . | . . . . Salvage Created 1557 | . 413 795 349 Parts 74 | . 15 46 13 Haulers Intercepted . | . . . . Recyclers Shooed 4 | . . 1 3 Parts Field Recycled . | . . . . Retrieved Matter . | . . . . Parts Self-Destructed . | . . . . Prevented . | . . . . Kills | -11 -10 -9 -9 ------- Run | Yrd Mat Mat Sto Combat Hostiles Destroyed 35 | . 8 22 5 Guns 9 | . 8 . 1 Cannons 22 | . . 21 1 AOE 4 | . . 1 3 Classes Destroyed 7 | . 3 4 . Worker 2 | . . 2 . Recycler 3 | . 1 . 2 Mechanic 1 | . . 1 . Watcher 6 | . 1 5 . Swarmer 3 | . . 3 . Grunt 25 | . 8 12 5 Sentry 8 | . . 7 1 Best Kill Streak 5 | . 2 5 4 Combat Bots Only 4 | . 2 3 4 Max Kills in Single Turn 2 | . 2 1 2 Gunslinging . | . . . . Exploded 2 | . . 1 2 Melee . | . . . . Uniques/NPCs Destroyed . | . . . . Combat | -11 -10 -9 -9 -------- Run | Yrd Mat Mat Sto Hostile Shots Fired 255 | . 65 178 12 Missed 67 | . 15 49 3 Damage Taken 2356 | 9 673 1425 249 Core 601 | 7 178 318 98 Absorbed by Shields 224 | . . 224 . Regen/Repaired (Parts) 52 | . . . 52 Core Remaining (%) 61 | 97 26 . . Volleys Fired 112 | . 46 58 8 Largest 3 | . 2 3 3 Hottest 132 | . 85 132 115 Shots Fired 268 | . 86 157 25 Gun 97 | . 86 . 11 Cannon 162 | . . 154 8 Launcher 9 | . . 3 6 Special . | . . . . Kinetic 217 | . 55 154 8 Thermal 31 | . 31 . . Explosive 9 | . . 3 6 Electromagnetic 11 | . . . 11 Robot Hit Streak 10 | . 9 10 2 Robot Miss Streak 6 | . 5 6 3 Penetration Max . | . . . . Secondary Targets . | . . . . Shots Hit Robots 136 | . 59 67 10 Core Hits 69 | 1 26 29 13 Critical Kills . | . . . . Critical Parts Destroyed 1 | . 1 . . Critical Strikes 11 | . 4 6 1 Burn 3 | . 3 . . Destroy 1 | . 1 . . Blast 6 | . . 6 . Corrupt 1 | . . . 1 Melee Attacks . | . . . . Impact . | . . . . Slashing . | . . . . Piercing . | . . . . Sneak Attacks . | . . . . Combat Hostiles . | . . . . Follow-up Attacks . | . . . . Damage Inflicted 3064 | 10 674 1735 645 Guns 706 | . 650 . 56 Cannons 1716 | . . 1631 85 Explosions 563 | . . 63 500 Melee . | . . . . Ramming 79 | 10 24 41 4 Kinetic 2102 | . 386 1631 85 Thermal 264 | . 264 . . Explosive 563 | . . 63 500 Electromagnetic 56 | . . . 56 Impact . | . . . . Slashing . | . . . . Piercing . | . . . . Highest Corruption 1 | . . . 1 Average Corruption 1 | . . . 1 Corruption Purged . | . . . . Corruption Blocked . | . . . . Effects 6 | . . . 6 Message Errors 2 | . . . 2 Matter Fused 2 | . . . 2 Energy Discharges 1 | . . . 1 Misfires 1 | . . . 1 Overload Shots . | . . . . Overflow Damage 59 | . . 17 42 Projectiles 17 | . . 17 . Explosions 42 | . . . 42 Melee . | . . . . Knockbacks 15 | . . 14 1 Impact . | . . . . Kinetic 14 | . . 13 1 Secondary 1 | . . 1 . Self-Inflicted Damage 46 | 2 3 5 36 Shots 1 | . . . 1 Rammed 6 | 3 1 2 . Targets Rammed 19 | 5 6 5 3 Kicked 13 | 2 5 3 3 Crushed . | . . . . Highest Temperature 423 | . 423 379 80 Average Temperature 122 | . 164 112 33 Received Heat Transfer 1018 | . 378 595 45 Effects 5 | . 1 4 . Shutdowns 1 | . 1 . . Energy Bleed 1 | . . 1 . Interference 3 | . . 3 . Siege Activations . | . . . . Robots Corrupted 1 | . . 1 . Combat Hostiles . | . . . . Parts Fried 1 | . . 1 . Impact Corruptions 2 | . . 2 . Robots Melted . | . . . . Combat Hostiles . | . . . . Parts Melted 1 | . 1 . . Heat Transferred 925 | . 925 . . Parts Sabotaged . | . . . . Parts Stolen . | . . . . Parts Stripped . | . . . . Power Chain Reactions . | . . . . Alert | -11 -10 -9 -9 ------- Run | Yrd Mat Mat Sto Peak Influence 367 | . 162 334 367 Initial 141 | . . 4 141 Average 169 | . 71 212 201 Maximum Alert Level 1 | . . 1 1 Low Security (%) 57 | 100 100 31 60 Level 1 42 | . . 68 39 Level 2 . | . . . . Level 3 . | . . . . Level 4 . | . . . . Level 5 . | . . . . High Security . | . . . . Max Security . | . . . . Squads Dispatched 4 | . 1 2 1 Investigation 3 | . 1 1 1 Extermination . | . . . . Reinforcement 1 | . . 1 . Assault . | . . . . Garrison . | . . . . Intercept . | . . . . Searches Triggered . | . . . . Construction Impeded 1 | . . 1 . Haulers Reinforced . | . . . . Active Scanning Responses . | . . . . Cargo Convoy Interrupts . | . . . . Stealth | -11 -10 -9 -9 --------- Run | Yrd Mat Mat Sto Distress Signals 2 | . . . 2 Communications Jammed . | . . . . Distress Signals . | . . . . Times Spotted 59 | . 13 34 12 Peak Tracking Total 5 | . 4 5 3 Tactical Retreats 2 | . . 2 . Traps | -11 -10 -9 -9 ------- Run | Yrd Mat Mat Sto Traps Triggered 4 | . 1 1 2 Indirectly . | . . . . Trap Hack Attempts . | . . . . Triggered . | . . . . Disarmed . | . . . . Reprogrammed . | . . . . Reused . | . . . . Traps Extracted . | . . . . Installed . | . . . . Triggered . | . . . . Machines | -11 -10 -9 -9 ---------- Run | Yrd Mat Mat Sto Machines Disabled 3 | . . 3 . Max in Single Turn 1 | . . 1 . Machines Repaired . | . . . . Machines Dismantled . | . . . . Machines Sabotaged . | . . . . Overloaded Fab Kills . | . . . . Hacking | -11 -10 -9 -9 --------- Run | Yrd Mat Mat Sto Machines Accessed 5 | . 1 1 3 Terminals 4 | . 1 1 2 Fabricators . | . . . . Repair Stations 1 | . . . 1 Recycling Units . | . . . . Scanalyzers . | . . . . Garrison Access . | . . . . Total Hacks 10 | . 3 1 6 Successful 4 | . . 1 3 Failed 6 | . 3 . 3 Catastrophic . | . . . . Database Lockouts . | . . . . Manual 4 | . 3 1 . Terminals 6 | . 3 1 2 Fabricators . | . . . . Repair Stations 4 | . . . 4 Recycling Units . | . . . . Scanalyzers . | . . . . Garrison Access . | . . . . Terminal Hacks 2 | . . 1 1 Open Door 1 | . . . 1 Recall Investigation 1 | . . 1 . Fabricator Hacks . | . . . . Repair Station Hacks 2 | . . . 2 Scan Component 1 | . . . 1 Repair 1 | . . . 1 Recycling Unit Hacks . | . . . . Scanalyzer . | . . . . Garrison Access Hacks . | . . . . Unauthorized Hacks . | . . . . Terminals . | . . . . Fabricators . | . . . . Repair Stations . | . . . . Recycling Units . | . . . . Scanalyzers . | . . . . Garrison Access . | . . . . Data Cores Recovered . | . . . . Used . | . . . . Hacking Detections 3 | . 1 1 1 Full Trace Events 1 | . . . 1 Feedback Events 1 | . . . 1 Corruption 1 | . . . 1 Feedback Blocked . | . . . . Robot Schematics Acquired . | . . . . Robots Built . | . . . . Authchips . | . . . . Time . | . . . . Total Robot Build Rating . | . . . . Part Schematics Acquired . | . . . . Parts Built . | . . . . Authchips . | . . . . Time . | . . . . Total Part Build Rating . | . . . . Parts Repaired 1 | . . . 1 Time 38 | . . . 38 Parts Recycled . | . . . . Recycled Matter . | . . . . Retrieved Matter . | . . . . Retrieved Components . | . . . . Parts Scanalyzed . | . . . . Part Schematics Acquired . | . . . . Parts Damaged . | . . . . Bothacking | -11 -10 -9 -9 ------------ Run | Yrd Mat Mat Sto Used RIF Installer . | . . . . Robots Hacked . | . . . . Non-combat . | . . . . Combat . | . . . . Robot Hacks Applied . | . . . . Relay Couplers Released . | . . . . Fabnet Peak Effective % . | . . . . Robots Rewired . | . . . . Allies Hacked . | . . . . Hacks Repelled . | . . . . Allies | -11 -10 -9 -9 -------- Run | Yrd Mat Mat Sto Total Allies 10 | . . . 10 Largest Group 10 | . . . 10 Highest-Rated Group 88 | . . . 88 Highest-Rated Ally 16 | . . . 16 Total Orders . | . . . . Ally Attacks 48 | . . . 48 Total Damage 373 | . . . 373 Kills 2 | . . . 2 Allies Corrupted . | . . . . Allies Melted . | . . . . Intel | -11 -10 -9 -9 ------- Run | Yrd Mat Mat Sto Robot Analysis Total . | . . . . Derelict Logs Recovered . | . . . . Drone Launches . | . . . . Drone Recoveries . | . . . . Exploration | -11 -10 -9 -9 ------------- Run | Yrd Mat Mat Sto Turns Passed 3236 | 87 800 1569 780 Spaces Moved 1541 | 54 387 723 377 Core 27 | 17 1 9 . Treads . | . . . . Legs 1167 | 37 247 506 377 Wheels 344 | . 139 205 . Hover 3 | . . 3 . Flight . | . . . . Fastest Speed 50 | 50 95 95 190 Average Speed 171 | 119 162 169 190 Slowest Speed 500 | 150 500 450 190 Overloaded Moves . | . . . . Propulsion Burnouts . | . . . . Robots Hopped . | . . . . Cave-ins Triggered . | . . . . Exploration Rate (%) 42 | 4 56 53 58 Regions Visited 3 Branch Regions 1 Pre-discovered Areas . | . . . . Known Exits Taken 1 | . . 1 . Unknown Exits Taken 2 | 1 1 . . Scrap Searched . | . . . . Spaces Dug . | . . . . Terrain Destroyed 100 | . . 60 40 Melee . | . . . . Projectile 40 | . . 40 . AOE 60 | . . 20 40 Terrain Rammed . | . . . . Walls Destroyed . | . . . . Machines Disabled . | . . . . Actions | -11 -10 -9 -9 --------- Run | Yrd Mat Mat Sto Total 1919 | 75 478 944 422 Wait 116 | . 12 89 15 Move 1538 | 53 386 722 377 Hop . | . . . . Pick Up 53 | 10 9 25 9 Fast Attach . | . . . . Attach 43 | 6 10 24 3 Detach 19 | . 6 11 2 Swap 2 | . . 2 . Drop 17 | 1 3 8 5 Fire 112 | . 46 58 8 Melee . | . . . . Ram 6 | 3 1 2 . Kick 13 | 2 5 3 3 Crush . | . . . . Escape Stasis . | . . . . Rewire . | . . . . Trap . | . . . . Miscellaneous . | . . . . Route ------- -11/Scrapyard -10/Materials (discovered 3 exits: *Mat / [*Min x2]) -9/Materials (discovered 2 exits: [*Min] / *Sto) -9/Storage (discovered 2 exits: [*Mat] / [*Rec]) History --------- Turn | Location | Event 31 | -11/Scrapyard | Discovered new exit (range 15) 88 | -11/Scrapyard | Entered Materials 302 | -10/Materials | Discovered new exit (range 13) 317 | -10/Materials | Build established: Mutant 571 | -10/Materials | Discovered new exit (range 13) 696 | -10/Materials | Core integrity fell below 50% 838 | -10/Materials | Discovered new exit (range 17) 888 | -10/Materials | Entered another Materials area 888 | -9/Materials | Evolved 2 slots: Utility x1, Weapon x1 1697 | -9/Materials | Build established: Tank 1909 | -9/Materials | Discovered new exit (range 13) 1960 | -9/Materials | Core integrity fell below 50% 1994 | -9/Materials | Lost 6 parts (1p2n1u2w) 2316 | -9/Materials | Build established: Scavenger-Skirmisher 2339 | -9/Materials | Discovered new exit (range 13) 2413 | -9/Materials | Identified exit to Storage 2457 | -9/Materials | Entered Storage 2478 | -9/Storage | Assisted by bots powering up and referring to "LRC-V3" 2579 | -9/Storage | Lost 4 allies 2583 | -9/Storage | Met 01-MTF 2608 | -9/Storage | Core integrity fell below 20% 2745 | -9/Storage | Discovered new exit (range 7) 2746 | -9/Storage | Repaired Missile Launcher? 2938 | -9/Storage | Lost 4 allies 3013 | -9/Storage | Discovered new exit (range 7) 3201 | -9/Storage | Build established: Skirmisher 3237 | -9/Storage | Destroyed by 01-MTF with 01-MTF's Shockpuncher Last Messages --------------- 03087_ U-05 Engineer builds a Wall. 03098_ T-07 Excavator is excavating. 03099_ U-05 Engineer lays Concrete. 03105_ Acquired 8 matter. 03113_ K/KJKS YX%8XPNTQL=D8=N5:TAY>|VOHTR 03120_ Acquired Prototype Flight Unit. 03133_ System corrupted: Energy discharge (-27). 03161_ Connecting with Door Terminal... >>Open(Door) Sealed Heavy Doors opened. 03168_ Acquired Drone Bay. 03190_ System corrupted: FCS attempts to trigger EM Pulse Gun. 03190_ System corrupted: EM Pulse Gun misfires. 03221_ U-05 Engineer builds a Door. 03222_ System corrupted: Matter fused (-10). 03232_ Y-45 Defender rewired by 01-MTF. 03236_ 01-MTF: "How could you, we barely know each other!" 03237_ Transfer Shaft disabled. Map ----- +----------------------------------------------------+ | ????????????????????# #????????# | | ????????????????????# """ #?????""?# | | ????????????????????# "R] #????""??# | | ????????????????????# """ #??"""???# | | ??????????????###???# #? ?????# | | ???????????#### #########+####+###????# | | ???????????# #????# | | ???????????# < #????# | | ???????????# #T########]]] #?#### | | ???????????########??????#]]] ### # | | ?????????????????????????#]] ##### | | ????????????????????????## ! | | ????????????????????????#" % % | | ????????????????#####???#"""########## | | ????????????????#! !#??## #![ | | ????????????????#! !#??#" #= | | ????????????????#! !#??## # ! | | ????????????????# !#???# ### | | ???????????????### ##???# %% # | | ???????????????#T #???########+### ## | | ??????????????####+########### ####* | | ??????######### # r #??#* | | ??????# Y # #??## | | ??????# p # #???? | | ??????# g# ########## #???? | | ????????""" "" @/ #????????#######???? | | ????????""" """ # #??????????????????? | | ????????""" """ # #??????????????????? | | ???????? # #????##????????????? | | ??????? ] # #####T######???????? | | ???????########## #???????? | | ????????????##### #???????? | | ???????????## %+ ==/ #???????? | | ???????????#T %#% =/ ########???????? | | ???????????##" ## =/ ######?###?????? | | ????????????#= ## # # ##????? | | ????????????#==## # #????? | | ????????????#==## # #????? | | ????????????##### + #????? | | ????????????????# == # #????? | | ????????????????# == # #????? | | ????????????????# #? # ##????? | | ????????????????# #? ??#?????? | | ????????????????# #T###??####????????? | | ????????????????# ###????????????????? | | ????????????????# #??????????????????? | | ????????????????# #??????????????????? | | ????????????????# #??????????????????? | | ????????????????# #??????????????????? | | ????????????????# #??????????????????? | +----------------------------------------------------+ Best States ------------- Heat Dissipation 28 Energy Generation 12 Energy Capacity 265 Matter Stores 300 Matter Capacity 300 Sight Range 18 Terrain Scan Range 14 Terrain Scan Density 10 Evasion (%) 55 Targeting Accuracy 5 Item Schematics ----------------- None Robot Schematics ------------------ None Fabricated ------------ Nothing Alien Tech Used ----------------- None Achievements -------------- Oops The More The Merrier Challenges ------------ None Game ------ Seed InertialAssemblyDerivative Manual? 0 Play Time 00:22:32 Cumulative 4.6 hours Start 2024.10.07 @ 19:42:06 End 2024.10.07 @ 20:02:26 Sessions 1 Manual Loads 0 Difficulty Rogue Special Mode None Game No. 9 Rogue 9 Adventurer 0 Explorer 0 Win Type - Total 0 Types 0/0/0/0/0/0/0/0/0 Lore% 6 Gallery% 8 Achievement% 10 Wizard Run 0 Options --------- Layout 1 ASCII 0 Keyboard 0 Movement Arrows Keybinds 0 Fullscreen 0 Font 20/SmallcapsGlow Map View 50x35 Zoom Use 0% Tactical HUD 1 Map Filters NONE Filters NONE Steam 1 RUN: aad29c68-f5c3-46e5-a87a-a517786d2bb1